[Event "Early-Titled-Tuesday-Blitz-August-29-2023"]
[Site "Chess.com"]
[Date "2023.08.29"]
[Round "5"]
[White "ExchangeAB"]
[Black "cthake"]
[Result "1-0"]
[WhiteElo "2466"]
[BlackElo "1862"]
[TimeControl "180+1"]
[EndTime "8:53:54 PDT"]
[Termination "ExchangeAB won by resignation"]

1. d4 {[%clk 0:03:00.9]} 1... Nf6 {[%clk 0:02:56.6]} 2. Nc3 {[%clk 0:03:01.2]}
2... c5 {[%clk 0:02:50.4]} 3. d5 {[%clk 0:03:00.2]} 3... d6 {[%clk 0:02:49.2]}
4. e4 {[%clk 0:03:00.2]} 4... e6 {[%clk 0:02:47]} 5. Bb5+ {[%clk 0:02:50.4]}
5... Bd7 {[%clk 0:02:32.9]} 6. dxe6 {[%clk 0:02:46.5]} 6... fxe6 {[%clk
0:02:25.7]} 7. e5 {[%clk 0:02:45.5]} 7... Bxb5 {[%clk 0:02:21.8]} 8. Nxb5 {[%clk
0:02:42.6]} 8... Nd5 {[%clk 0:01:58]} 9. Nxd6+ {[%clk 0:02:40.5]} 9... Bxd6
{[%clk 0:01:57.7]} 10. exd6 {[%clk 0:02:41.4]} 10... Qxd6 {[%clk 0:01:57.8]} 11.
Nf3 {[%clk 0:02:34.2]} 11... O-O {[%clk 0:01:57]} 12. c4 {[%clk 0:02:27.5]}
12... Nc6 {[%clk 0:01:34.4]} 13. cxd5 {[%clk 0:02:26.5]} 13... exd5 {[%clk
0:01:34.7]} 14. O-O {[%clk 0:02:22.3]} 14... Rae8 {[%clk 0:01:34.6]} 15. Re1
{[%clk 0:02:17.2]} 15... Rxe1+ {[%clk 0:01:27.6]} 16. Qxe1 {[%clk 0:02:18.1]}
16... Qg6 {[%clk 0:01:24.6]} 17. Kh1 {[%clk 0:02:06.1]} 17... d4 {[%clk
0:01:22.6]} 18. Bg5 {[%clk 0:01:41.8]} 18... Nb4 {[%clk 0:01:21]} 19. Qe5 {[%clk
0:01:25.7]} 19... Nd3 {[%clk 0:01:16.8]} 20. Qd5+ {[%clk 0:01:19.7]} 20... Kh8
{[%clk 0:01:11.6]} 21. Bh4 {[%clk 0:01:12.2]} 21... Nxb2 {[%clk 0:00:58.8]} 22.
Qxc5 {[%clk 0:01:07.6]} 22... Kg8 {[%clk 0:00:24.9]} 23. Qxd4 {[%clk 0:01:03.8]}
23... Nd3 {[%clk 0:00:24.8]} 24. Rd1 {[%clk 0:00:59.1]} 24... Nf4 {[%clk
0:00:23.4]} 25. Bg3 {[%clk 0:00:50.4]} 25... Ne2 {[%clk 0:00:21.2]} 26. Qc4+
{[%clk 0:00:49.8]} 1-0

[Event "Early-Titled-Tuesday-Blitz-August-29-2023"]
[Site "Chess.com"]
[Date "2023.08.29"]
[Round "5"]
[White "LionTheLeon_06"]
[Black "KrokerGuy"]
[Result "1-0"]
[WhiteElo "2781"]
[BlackElo "2504"]
[TimeControl "180+1"]
[EndTime "8:53:55 PDT"]
[Termination "LionTheLeon_06 won by resignation"]

1. e4 {[%clk 0:03:00.9]} 1... e5 {[%clk 0:02:57.4]} 2. Nf3 {[%clk 0:03:00.7]}
2... Nc6 {[%clk 0:02:55.4]} 3. Bc4 {[%clk 0:03:00.6]} 3... Bc5 {[%clk
0:02:54.9]} 4. d3 {[%clk 0:02:59.8]} 4... Nf6 {[%clk 0:02:55.3]} 5. c3 {[%clk
0:02:59]} 5... d6 {[%clk 0:02:55.1]} 6. Bg5 {[%clk 0:02:58.5]} 6... h6 {[%clk
0:02:53.7]} 7. Bh4 {[%clk 0:02:58.3]} 7... g5 {[%clk 0:02:39.4]} 8. Bg3 {[%clk
0:02:58.4]} 8... a6 {[%clk 0:02:36.2]} 9. Nbd2 {[%clk 0:02:54.3]} 9... Bg4
{[%clk 0:02:19.1]} 10. b4 {[%clk 0:02:50.5]} 10... Ba7 {[%clk 0:02:17.2]} 11. a4
{[%clk 0:02:44.6]} 11... Nh5 {[%clk 0:01:49.3]} 12. b5 {[%clk 0:01:59.5]} 12...
Na5 {[%clk 0:01:33.1]} 13. Ba2 {[%clk 0:01:59.4]} 13... Ng7 {[%clk 0:01:11.2]}
14. h3 {[%clk 0:01:57.5]} 14... Be6 {[%clk 0:01:05.6]} 15. h4 {[%clk 0:01:51.7]}
15... g4 {[%clk 0:00:57.7]} 16. Nh2 {[%clk 0:01:50.4]} 16... h5 {[%clk
0:00:49.6]} 17. O-O {[%clk 0:01:50.4]} 17... Bxa2 {[%clk 0:00:47.3]} 18. Rxa2
{[%clk 0:01:51.3]} 18... Ne6 {[%clk 0:00:48.2]} 19. Re1 {[%clk 0:01:38.5]} 19...
Nf4 {[%clk 0:00:46.4]} 20. Ndf1 {[%clk 0:01:35.9]} 20... Ng6 {[%clk 0:00:35.4]}
21. d4 {[%clk 0:01:36.1]} 21... Qe7 {[%clk 0:00:30.3]} 22. Ne3 {[%clk
0:01:35.1]} 22... O-O-O {[%clk 0:00:23.3]} 23. bxa6 {[%clk 0:01:33.2]} 23...
bxa6 {[%clk 0:00:24.2]} 24. Qd3 {[%clk 0:01:31.6]} 24... Bb6 {[%clk 0:00:12.1]}
25. Qxa6+ {[%clk 0:01:31.2]} 25... Kd7 {[%clk 0:00:13]} 26. Nd5 {[%clk
0:01:30.4]} 26... Qe6 {[%clk 0:00:05.9]} 27. Qb5+ {[%clk 0:01:30.5]} 27... Kc8
{[%clk 0:00:04.2]} 28. Nxb6+ {[%clk 0:01:29.9]} 28... cxb6 {[%clk 0:00:05.1]}
29. Rb2 {[%clk 0:01:25.3]} 29... Rd7 {[%clk 0:00:03]} 30. Qxb6 {[%clk
0:01:23.4]} 30... Rb7 {[%clk 0:00:03.2]} 31. Qa6 {[%clk 0:01:23.5]} 31... Qd7
{[%clk 0:00:02.2]} 32. Reb1 {[%clk 0:01:22.7]} 1-0

[Event "Early-Titled-Tuesday-Blitz-August-29-2023"]
[Site "Chess.com"]
[Date "2023.08.29"]
[Round "5"]
[White "AsaHoffmann"]
[Black "124chess"]
[Result "0-1"]
[WhiteElo "2362"]
[BlackElo "2677"]
[TimeControl "180+1"]
[EndTime "8:54:02 PDT"]
[Termination "124chess won by resignation"]

1. d4 {[%clk 0:02:58.9]} 1... g6 {[%clk 0:02:57.9]} 2. e4 {[%clk 0:02:57]} 2...
Bg7 {[%clk 0:02:58.4]} 3. Be3 {[%clk 0:02:56.5]} 3... c6 {[%clk 0:02:56.9]} 4.
Qd2 {[%clk 0:02:56]} 4... d5 {[%clk 0:02:57.1]} 5. Nc3 {[%clk 0:02:53.2]} 5...
dxe4 {[%clk 0:02:56.5]} 6. Nxe4 {[%clk 0:02:52.6]} 6... Nf6 {[%clk 0:02:57.2]}
7. Nxf6+ {[%clk 0:02:50.1]} 7... exf6 {[%clk 0:02:57.6]} 8. Bc4 {[%clk
0:02:47.1]} 8... O-O {[%clk 0:02:57.5]} 9. Nf3 {[%clk 0:02:46.3]} 9... b5 {[%clk
0:02:54.6]} 10. Bb3 {[%clk 0:02:45.7]} 10... a5 {[%clk 0:02:55.2]} 11. a4 {[%clk
0:02:45.5]} 11... b4 {[%clk 0:02:55]} 12. O-O {[%clk 0:02:43.8]} 12... Nd7
{[%clk 0:02:52.5]} 13. Bh6 {[%clk 0:02:37.1]} 13... Nb6 {[%clk 0:02:52.1]} 14.
Bxg7 {[%clk 0:02:36.3]} 14... Kxg7 {[%clk 0:02:53]} 15. h3 {[%clk 0:02:34.9]}
15... Ra7 {[%clk 0:02:50.9]} 16. Rfe1 {[%clk 0:02:34.3]} 16... Re8 {[%clk
0:02:50.2]} 17. Qf4 {[%clk 0:02:22.2]} 17... Rae7 {[%clk 0:02:49.7]} 18. Rxe7
{[%clk 0:02:19.7]} 18... Rxe7 {[%clk 0:02:50.2]} 19. Re1 {[%clk 0:02:00.4]}
19... Rxe1+ {[%clk 0:02:49]} 20. Nxe1 {[%clk 0:01:59.9]} 20... Nd5 {[%clk
0:02:48.3]} 21. Qf3 {[%clk 0:01:56.1]} 21... Be6 {[%clk 0:02:47.8]} 22. Nd3
{[%clk 0:01:53.8]} 22... Bf5 {[%clk 0:02:24.2]} 23. Nc5 {[%clk 0:01:47.8]} 23...
Qe7 {[%clk 0:02:08.5]} 24. Bxd5 {[%clk 0:01:44.2]} 24... cxd5 {[%clk 0:02:07.5]}
25. c3 {[%clk 0:01:40.1]} 25... Qe1+ {[%clk 0:01:59.9]} 26. Kh2 {[%clk
0:01:39.6]} 26... Qd2 {[%clk 0:02:00.8]} 27. cxb4 {[%clk 0:01:28.4]} 27... Qxd4
{[%clk 0:01:23.3]} 28. g4 {[%clk 0:00:54.2]} 28... Be4 {[%clk 0:01:18.7]} 29.
Qe3 {[%clk 0:00:50.2]} 29... Qxb4 {[%clk 0:01:17.1]} 30. Nxe4 {[%clk 0:00:48.6]}
30... dxe4 {[%clk 0:01:18]} 31. b3 {[%clk 0:00:47.3]} 31... Qd6+ {[%clk
0:01:09.3]} 32. Kg2 {[%clk 0:00:46.7]} 32... Qe5 {[%clk 0:01:09.8]} 33. f3
{[%clk 0:00:43.6]} 33... exf3+ {[%clk 0:01:09.4]} 34. Qxf3 {[%clk 0:00:43]}
34... Qc5 {[%clk 0:01:05.9]} 35. Qd3 {[%clk 0:00:41.9]} 35... h5 {[%clk
0:01:03.7]} 36. Kg3 {[%clk 0:00:41.3]} 36... Qe5+ {[%clk 0:01:02.6]} 37. Kf3
{[%clk 0:00:41.1]} 37... h4 {[%clk 0:01:02.4]} 38. Qb5 {[%clk 0:00:38.2]} 38...
Qg3+ {[%clk 0:01:01.2]} 39. Ke4 {[%clk 0:00:37.1]} 39... Qxh3 {[%clk 0:01:02.1]}
40. Qxa5 {[%clk 0:00:34.2]} 40... Qg2+ {[%clk 0:01:02]} 41. Kd4 {[%clk
0:00:33.6]} 41... h3 {[%clk 0:01:02.9]} 42. Qe1 {[%clk 0:00:31.8]} 42... h2
{[%clk 0:01:02.8]} 0-1

[Event "Early-Titled-Tuesday-Blitz-August-29-2023"]
[Site "Chess.com"]
[Date "2023.08.29"]
[Round "5"]
[White "RIPOL"]
[Black "SAInt_666"]
[Result "0-1"]
[WhiteElo "2444"]
[BlackElo "2667"]
[TimeControl "180+1"]
[EndTime "8:54:03 PDT"]
[Termination "SAInt_666 won by resignation"]

1. d4 {[%clk 0:02:59.4]} 1... Nf6 {[%clk 0:03:00]} 2. Bg5 {[%clk 0:02:58.6]}
2... c5 {[%clk 0:02:59.9]} 3. Bxf6 {[%clk 0:02:58]} 3... gxf6 {[%clk 0:02:59.1]}
4. d5 {[%clk 0:02:58]} 4... Qb6 {[%clk 0:02:59.5]} 5. Qc1 {[%clk 0:02:57.6]}
5... d6 {[%clk 0:02:58.8]} 6. c4 {[%clk 0:02:56.1]} 6... f5 {[%clk 0:02:58.2]}
7. Nc3 {[%clk 0:02:54.9]} 7... Bg7 {[%clk 0:02:57.9]} 8. Nf3 {[%clk 0:02:51.3]}
8... Nd7 {[%clk 0:02:56.8]} 9. e3 {[%clk 0:02:49.5]} 9... Ne5 {[%clk 0:02:57]}
10. Nd2 {[%clk 0:02:48.8]} 10... Bd7 {[%clk 0:02:54.8]} 11. h3 {[%clk
0:02:47.8]} 11... Rg8 {[%clk 0:02:54.2]} 12. Be2 {[%clk 0:02:44.8]} 12... Bf6
{[%clk 0:02:48.7]} 13. O-O {[%clk 0:02:36.8]} 13... f4 {[%clk 0:02:33.1]} 14.
Kh1 {[%clk 0:02:19.9]} 14... Ng6 {[%clk 0:02:10.2]} 15. Nde4 {[%clk 0:02:07.3]}
15... Be5 {[%clk 0:02:05.3]} 16. exf4 {[%clk 0:01:45.7]} 16... Nxf4 {[%clk
0:01:58.9]} 17. Bf3 {[%clk 0:01:36.5]} 17... O-O-O {[%clk 0:01:56.5]} 18. Qe3
{[%clk 0:01:16.7]} 18... Rg6 {[%clk 0:01:48]} 19. Rab1 {[%clk 0:01:08.2]} 19...
Rdg8 {[%clk 0:01:42.4]} 20. Ng3 {[%clk 0:01:05.7]} 20... h5 {[%clk 0:01:28.3]}
21. Nce2 {[%clk 0:00:52]} 21... Nxe2 {[%clk 0:01:21.6]} 22. Nxe2 {[%clk
0:00:49.6]} 22... Bf5 {[%clk 0:01:16.2]} 23. Be4 {[%clk 0:00:45.3]} 23... Bxe4
{[%clk 0:01:09.3]} 24. Qxe4 {[%clk 0:00:45.3]} 24... Qb4 {[%clk 0:01:06.2]} 25.
f4 {[%clk 0:00:42.3]} 25... Bf6 {[%clk 0:01:04.8]} 26. Rf2 {[%clk 0:00:35.5]}
26... Qd2 {[%clk 0:00:58.8]} 27. Rbf1 {[%clk 0:00:32.4]} 27... Bh4 {[%clk
0:00:52.7]} 28. Ng3 {[%clk 0:00:17.8]} 28... Qd4 {[%clk 0:00:52.7]} 29. Qxd4
{[%clk 0:00:16.2]} 29... cxd4 {[%clk 0:00:53.6]} 0-1

[Event "Early-Titled-Tuesday-Blitz-August-29-2023"]
[Site "Chess.com"]
[Date "2023.08.29"]
[Round "5"]
[White "yuki_chess123"]
[Black "chessajedrezz2020"]
[Result "0-1"]
[WhiteElo "2195"]
[BlackElo "2668"]
[TimeControl "180+1"]
[EndTime "8:54:03 PDT"]
[Termination "chessajedrezz2020 won by checkmate"]

1. e4 {[%clk 0:03:00]} 1... e5 {[%clk 0:02:55.1]} 2. Nf3 {[%clk 0:02:56.1]} 2...
Nc6 {[%clk 0:02:54.8]} 3. Bb5 {[%clk 0:02:55.3]} 3... a6 {[%clk 0:02:52.3]} 4.
Bxc6 {[%clk 0:02:55.2]} 4... dxc6 {[%clk 0:02:52.1]} 5. Nc3 {[%clk 0:02:51.6]}
5... f6 {[%clk 0:01:44.4]} 6. d3 {[%clk 0:02:49.8]} 6... Bg4 {[%clk 0:01:35.6]}
7. h3 {[%clk 0:02:48.7]} 7... Bh5 {[%clk 0:01:33.6]} 8. g4 {[%clk 0:02:47.8]}
8... Bf7 {[%clk 0:01:32.8]} 9. Ne2 {[%clk 0:02:48.7]} 9... Qd7 {[%clk
0:01:29.8]} 10. Ng3 {[%clk 0:02:48.8]} 10... O-O-O {[%clk 0:01:29.3]} 11. Rb1
{[%clk 0:02:47.4]} 11... Bxa2 {[%clk 0:01:20.3]} 12. Ra1 {[%clk 0:02:46.7]}
12... Be6 {[%clk 0:01:14]} 13. Qe2 {[%clk 0:02:46.7]} 13... Ne7 {[%clk
0:00:59.6]} 14. Be3 {[%clk 0:02:28.9]} 14... Ng6 {[%clk 0:00:56.1]} 15. d4
{[%clk 0:02:24.6]} 15... Nf4 {[%clk 0:00:33.6]} 16. Rxa6 {[%clk 0:02:12.6]}
16... Ng2+ {[%clk 0:00:19.4]} 17. Kd2 {[%clk 0:02:04.9]} 17... Qd6 {[%clk
0:00:09.5]} 18. Ra8+ {[%clk 0:01:55.8]} 18... Kd7 {[%clk 0:00:10.1]} 19. Rxd8+
{[%clk 0:01:56.6]} 19... Kxd8 {[%clk 0:00:11]} 20. c3 {[%clk 0:01:50.3]} 20...
exd4 {[%clk 0:00:10.9]} 21. cxd4 {[%clk 0:01:42.5]} 21... Qb4+ {[%clk
0:00:10.1]} 22. Kc1 {[%clk 0:01:41.7]} 22... Qa4 {[%clk 0:00:08.7]} 23. d5
{[%clk 0:01:21.8]} 23... cxd5 {[%clk 0:00:09.3]} 24. Rd1 {[%clk 0:01:20.5]}
24... c6 {[%clk 0:00:09.6]} 25. Nd4 {[%clk 0:01:18.9]} 25... Bd7 {[%clk
0:00:09.3]} 26. exd5 {[%clk 0:01:15.4]} 26... cxd5 {[%clk 0:00:09.7]} 27. Qc2
{[%clk 0:01:07.1]} 27... Qa1+ {[%clk 0:00:07.5]} 28. Kd2 {[%clk 0:01:06.7]}
28... Bb4+ {[%clk 0:00:07.9]} 29. Ke2 {[%clk 0:01:06.9]} 29... Qa6+ {[%clk
0:00:08]} 30. Kf3 {[%clk 0:01:06.5]} 30... Nh4+ {[%clk 0:00:08.5]} 31. Kf4
{[%clk 0:01:01.3]} 31... g5# {[%clk 0:00:08.8]} 0-1

[Event "Early-Titled-Tuesday-Blitz-August-29-2023"]
[Site "Chess.com"]
[Date "2023.08.29"]
[Round "5"]
[White "gueraumasague"]
[Black "jcreyes69"]
[Result "1-0"]
[WhiteElo "2553"]
[BlackElo "2389"]
[TimeControl "180+1"]
[EndTime "8:54:06 PDT"]
[Termination "gueraumasague won by checkmate"]

1. Nf3 {[%clk 0:02:18.2]} 1... d5 {[%clk 0:02:35.1]} 2. d4 {[%clk 0:02:19.1]}
2... Nf6 {[%clk 0:02:31.7]} 3. e3 {[%clk 0:02:20]} 3... e6 {[%clk 0:02:25.7]} 4.
c4 {[%clk 0:02:20.4]} 4... a6 {[%clk 0:02:20.1]} 5. b3 {[%clk 0:02:18.2]} 5...
b6 {[%clk 0:02:11.9]} 6. Bb2 {[%clk 0:02:18]} 6... Bb7 {[%clk 0:02:11.9]} 7.
cxd5 {[%clk 0:02:07.5]} 7... exd5 {[%clk 0:02:10.4]} 8. g3 {[%clk 0:02:07.4]}
8... Nbd7 {[%clk 0:02:09]} 9. Bg2 {[%clk 0:02:07]} 9... Bd6 {[%clk 0:02:08.9]}
10. Nc3 {[%clk 0:02:06.3]} 10... O-O {[%clk 0:02:08.6]} 11. O-O {[%clk
0:02:06.3]} 11... Re8 {[%clk 0:02:07.9]} 12. Rc1 {[%clk 0:02:04.5]} 12... h6
{[%clk 0:02:02.7]} 13. Ne2 {[%clk 0:02:04.3]} 13... Ne4 {[%clk 0:02:00.9]} 14.
Rc2 {[%clk 0:02:03.4]} 14... Qe7 {[%clk 0:01:54.3]} 15. Nf4 {[%clk 0:02:02.4]}
15... Rac8 {[%clk 0:01:53.7]} 16. Qa1 {[%clk 0:02:00.5]} 16... Ndf6 {[%clk
0:01:30.7]} 17. Rfc1 {[%clk 0:01:56.3]} 17... Ng4 {[%clk 0:01:24.3]} 18. Nd3
{[%clk 0:01:47.1]} 18... Qf6 {[%clk 0:01:11.7]} 19. h3 {[%clk 0:01:29.3]} 19...
Nxe3 {[%clk 0:00:47]} 20. fxe3 {[%clk 0:01:30.2]} 20... Bxg3 {[%clk 0:00:47.4]}
21. Rf1 {[%clk 0:01:27.1]} 21... Qg6 {[%clk 0:00:45.6]} 22. Nfe5 {[%clk
0:01:19.1]} 22... Bxe5 {[%clk 0:00:44.8]} 23. Nxe5 {[%clk 0:01:20]} 23... Qg5
{[%clk 0:00:44]} 24. Qe1 {[%clk 0:01:11.2]} 24... Ng3 {[%clk 0:00:26]} 25. Rf4
{[%clk 0:00:42.2]} 25... f6 {[%clk 0:00:21.2]} 26. Rg4 {[%clk 0:00:41.6]} 26...
Qf5 {[%clk 0:00:19.4]} 27. Qxg3 {[%clk 0:00:42.1]} 27... Qxc2 {[%clk 0:00:17.2]}
28. Rxg7+ {[%clk 0:00:41.7]} 28... Kh8 {[%clk 0:00:16.6]} 29. Nf7# {[%clk
0:00:41.2]} 1-0

[Event "Early-Titled-Tuesday-Blitz-August-29-2023"]
[Site "Chess.com"]
[Date "2023.08.29"]
[Round "5"]
[White "MatyChess1"]
[Black "Herman-NY"]
[Result "1-0"]
[WhiteElo "2679"]
[BlackElo "2457"]
[TimeControl "180+1"]
[EndTime "8:54:09 PDT"]
[Termination "MatyChess1 won on time"]

1. d4 {[%clk 0:03:00.9]} 1... Nf6 {[%clk 0:02:58.9]} 2. Bf4 {[%clk 0:03:01]}
2... g6 {[%clk 0:02:58.5]} 3. e3 {[%clk 0:03:00.5]} 3... Bg7 {[%clk 0:02:58.8]}
4. Nf3 {[%clk 0:03:01.3]} 4... O-O {[%clk 0:02:58.9]} 5. Be2 {[%clk 0:03:01.5]}
5... d6 {[%clk 0:02:59.5]} 6. h3 {[%clk 0:03:01.9]} 6... Nfd7 {[%clk 0:02:59.8]}
7. Bh2 {[%clk 0:03:02.2]} 7... Kh8 {[%clk 0:03:00]} 8. O-O {[%clk 0:03:01.9]}
8... e5 {[%clk 0:03:00.6]} 9. a4 {[%clk 0:03:02.4]} 9... a5 {[%clk 0:03:00.6]}
10. Nc3 {[%clk 0:03:02.3]} 10... f5 {[%clk 0:02:58.7]} 11. Nb5 {[%clk
0:03:02.1]} 11... g5 {[%clk 0:02:17.6]} 12. c3 {[%clk 0:02:58.9]} 12... Nc6
{[%clk 0:01:55.6]} 13. Nd2 {[%clk 0:02:45.1]} 13... f4 {[%clk 0:01:18.7]} 14.
Bd3 {[%clk 0:02:43.1]} 14... Nf6 {[%clk 0:01:11.6]} 15. Ne4 {[%clk 0:02:32.3]}
15... Nxe4 {[%clk 0:00:50.3]} 16. Bxe4 {[%clk 0:02:32.5]} 16... d5 {[%clk
0:00:50.9]} 17. Bc2 {[%clk 0:02:33.1]} 17... e4 {[%clk 0:00:51.5]} 18. c4 {[%clk
0:02:33.1]} 18... Nb4 {[%clk 0:00:14.9]} 19. cxd5 {[%clk 0:02:33.2]} 19... Bf5
{[%clk 0:00:05.3]} 20. Nc3 {[%clk 0:02:28.7]} 20... f3 {[%clk 0:00:03.1]} 21.
Bxe4 {[%clk 0:01:58.8]} 21... Bxe4 {[%clk 0:00:03.5]} 22. Nxe4 {[%clk
0:01:58.9]} 22... Qxd5 {[%clk 0:00:04.3]} 23. gxf3 {[%clk 0:01:57.5]} 23... Rae8
{[%clk 0:00:04.6]} 24. Rc1 {[%clk 0:01:54.1]} 24... Qd7 {[%clk 0:00:02.8]} 25.
Kg2 {[%clk 0:01:50.2]} 25... c6 {[%clk 0:00:02.6]} 26. Nxg5 {[%clk 0:01:47.9]}
26... Rg8 {[%clk 0:00:02.2]} 27. Bg3 {[%clk 0:01:47.4]} 27... Bf6 {[%clk
0:00:02.6]} 28. Ne4 {[%clk 0:01:46.9]} 28... Bh4 {[%clk 0:00:03]} 29. Rc5 {[%clk
0:01:42]} 29... Nd5 {[%clk 0:00:02.9]} 30. Qb3 {[%clk 0:01:26.6]} 30... Rxe4
{[%clk 0:00:03.2]} 31. fxe4 {[%clk 0:01:25.2]} 31... Bxg3 {[%clk 0:00:02.4]} 32.
fxg3 {[%clk 0:01:24.4]} 32... Qg7 {[%clk 0:00:03.3]} 33. Rf3 {[%clk 0:01:22.4]}
33... Nf6 {[%clk 0:00:03.4]} 34. Re5 {[%clk 0:01:12.1]} 34... Qg6 {[%clk
0:00:03.2]} 35. Qe6 {[%clk 0:01:07.7]} 1-0

[Event "Early-Titled-Tuesday-Blitz-August-29-2023"]
[Site "Chess.com"]
[Date "2023.08.29"]
[Round "5"]
[White "stratacticos"]
[Black "HElissalt"]
[Result "0-1"]
[WhiteElo "1826"]
[BlackElo "2367"]
[TimeControl "180+1"]
[EndTime "8:54:11 PDT"]
[Termination "HElissalt won on time"]

1. e4 {[%clk 0:03:00.1]} 1... d6 {[%clk 0:02:54.4]} 2. d4 {[%clk 0:02:59.1]}
2... Nf6 {[%clk 0:02:53.1]} 3. Nc3 {[%clk 0:02:58.9]} 3... e5 {[%clk 0:02:51.6]}
4. Nf3 {[%clk 0:02:54.7]} 4... Nbd7 {[%clk 0:02:50.3]} 5. Bg5 {[%clk 0:02:44.8]}
5... Be7 {[%clk 0:02:48.8]} 6. dxe5 {[%clk 0:02:36.6]} 6... dxe5 {[%clk
0:02:46]} 7. Qd2 {[%clk 0:02:31.2]} 7... c6 {[%clk 0:02:43.1]} 8. O-O-O {[%clk
0:02:30.4]} 8... Qc7 {[%clk 0:02:42.8]} 9. Bc4 {[%clk 0:02:27.4]} 9... b5 {[%clk
0:02:26.7]} 10. Bxb5 {[%clk 0:02:03.9]} 10... cxb5 {[%clk 0:02:05.6]} 11. Nxb5
{[%clk 0:02:02.8]} 11... Qb6 {[%clk 0:02:05.6]} 12. Qe2 {[%clk 0:01:46.5]} 12...
Rb8 {[%clk 0:01:55.9]} 13. a4 {[%clk 0:01:38.4]} 13... a6 {[%clk 0:01:51.1]} 14.
Be3 {[%clk 0:01:27.3]} 14... Qc6 {[%clk 0:01:30.6]} 15. Na7 {[%clk 0:01:07.8]}
15... Qxa4 {[%clk 0:01:25.1]} 16. Kb1 {[%clk 0:00:58.9]} 16... O-O {[%clk
0:01:20.5]} 17. Nd2 {[%clk 0:00:34.6]} 17... Bc5 {[%clk 0:01:11.8]} 18. b3
{[%clk 0:00:23.3]} 18... Bxa7 {[%clk 0:00:52.1]} 19. Bxa7 {[%clk 0:00:20.8]}
19... Rb7 {[%clk 0:00:49.3]} 20. f3 {[%clk 0:00:13.9]} 20... Qc6 {[%clk
0:00:47.7]} 21. Qe3 {[%clk 0:00:07.5]} 21... Re8 {[%clk 0:00:45.6]} 22. Nc4
{[%clk 0:00:07.3]} 22... Qxc4 {[%clk 0:00:44.7]} 0-1

[Event "Early-Titled-Tuesday-Blitz-August-29-2023"]
[Site "Chess.com"]
[Date "2023.08.29"]
[Round "5"]
[White "Chessbard1972"]
[Black "Inepton_Fermion"]
[Result "1-0"]
[WhiteElo "2550"]
[BlackElo "2378"]
[TimeControl "180+1"]
[EndTime "8:54:17 PDT"]
[Termination "Chessbard1972 won by resignation"]

1. d4 {[%clk 0:03:00.9]} 1... Nf6 {[%clk 0:02:57.6]} 2. c4 {[%clk 0:03:00.1]}
2... e6 {[%clk 0:02:57.7]} 3. Nf3 {[%clk 0:03:00.1]} 3... b6 {[%clk 0:02:56.9]}
4. a3 {[%clk 0:03:00.4]} 4... Bb7 {[%clk 0:02:55.2]} 5. Nc3 {[%clk 0:02:59.9]}
5... Ne4 {[%clk 0:02:55.8]} 6. Nxe4 {[%clk 0:02:59.3]} 6... Bxe4 {[%clk
0:02:56.7]} 7. Nd2 {[%clk 0:02:59.8]} 7... Bb7 {[%clk 0:02:55.7]} 8. e4 {[%clk
0:03:00]} 8... Qf6 {[%clk 0:02:53.9]} 9. d5 {[%clk 0:02:51.3]} 9... g6 {[%clk
0:02:45.4]} 10. Bd3 {[%clk 0:02:46.2]} 10... Bg7 {[%clk 0:02:45.4]} 11. O-O
{[%clk 0:02:45.4]} 11... O-O {[%clk 0:02:45.4]} 12. Nf3 {[%clk 0:02:41]} 12...
h6 {[%clk 0:02:24]} 13. Rb1 {[%clk 0:02:39.2]} 13... d6 {[%clk 0:02:13.1]} 14.
b4 {[%clk 0:02:34.8]} 14... Nd7 {[%clk 0:02:13.1]} 15. Bb2 {[%clk 0:02:33.3]}
15... Qe7 {[%clk 0:02:11.9]} 16. Bxg7 {[%clk 0:02:32.4]} 16... Kxg7 {[%clk
0:02:12.8]} 17. dxe6 {[%clk 0:02:26.7]} 17... fxe6 {[%clk 0:01:42.6]} 18. Re1
{[%clk 0:02:24.6]} 18... e5 {[%clk 0:01:42.7]} 19. h3 {[%clk 0:02:19.7]} 19...
a5 {[%clk 0:01:40.4]} 20. Nh2 {[%clk 0:02:13.3]} 20... axb4 {[%clk 0:01:38.4]}
21. axb4 {[%clk 0:02:12.6]} 21... Ra2 {[%clk 0:01:30.3]} 22. Re2 {[%clk
0:02:12.2]} 22... Ra3 {[%clk 0:01:24.9]} 23. Rb3 {[%clk 0:02:08.9]} 23... Ra7
{[%clk 0:01:09.5]} 24. Bc2 {[%clk 0:02:06.8]} 24... Qh4 {[%clk 0:01:03.5]} 25.
Rg3 {[%clk 0:01:59.5]} 25... Nf6 {[%clk 0:00:46.6]} 26. c5 {[%clk 0:01:32.8]}
26... bxc5 {[%clk 0:00:33.3]} 27. bxc5 {[%clk 0:01:32.6]} 27... Rfa8 {[%clk
0:00:25.8]} 28. Re1 {[%clk 0:01:29.1]} 28... Bxe4 {[%clk 0:00:17.8]} 29. cxd6
{[%clk 0:01:17.4]} 29... Ra1 {[%clk 0:00:15.7]} 30. Qxa1 {[%clk 0:01:13.6]}
30... Rxa1 {[%clk 0:00:16.6]} 31. Rxa1 {[%clk 0:01:13.6]} 31... Bxc2 {[%clk
0:00:16.9]} 32. dxc7 {[%clk 0:01:13.5]} 32... Bf5 {[%clk 0:00:16.9]} 33. Ra8
{[%clk 0:01:07]} 33... Qc4 {[%clk 0:00:14.6]} 34. Ra7 {[%clk 0:01:02.8]} 34...
Ne4 {[%clk 0:00:07.6]} 35. c8=Q+ {[%clk 0:00:59.3]} 35... Kf6 {[%clk 0:00:07.8]}
36. Qxc4 {[%clk 0:00:57.9]} 1-0

[Event "Early-Titled-Tuesday-Blitz-August-29-2023"]
[Site "Chess.com"]
[Date "2023.08.29"]
[Round "5"]
[White "vovachesss"]
[Black "DanilNajdin"]
[Result "1-0"]
[WhiteElo "2803"]
[BlackElo "2568"]
[TimeControl "180+1"]
[EndTime "8:54:18 PDT"]
[Termination "vovachesss won by resignation"]

1. e4 {[%clk 0:03:00.9]} 1... g6 {[%clk 0:02:59.1]} 2. d4 {[%clk 0:03:00.9]}
2... c6 {[%clk 0:02:59.2]} 3. Nf3 {[%clk 0:02:58.6]} 3... d5 {[%clk 0:02:58.7]}
4. e5 {[%clk 0:02:58.9]} 4... f6 {[%clk 0:02:52]} 5. Bd3 {[%clk 0:02:48.8]} 5...
Bg7 {[%clk 0:02:50.4]} 6. O-O {[%clk 0:02:46]} 6... Bg4 {[%clk 0:02:36.1]} 7.
Re1 {[%clk 0:02:27.7]} 7... fxe5 {[%clk 0:02:28.3]} 8. dxe5 {[%clk 0:02:28.1]}
8... e6 {[%clk 0:02:25.1]} 9. Nbd2 {[%clk 0:02:22.3]} 9... Ne7 {[%clk
0:02:12.5]} 10. h3 {[%clk 0:02:21.5]} 10... Bf5 {[%clk 0:02:12.2]} 11. Bf1
{[%clk 0:02:18]} 11... O-O {[%clk 0:01:58]} 12. g4 {[%clk 0:02:03.5]} 12... Be4
{[%clk 0:01:58.2]} 13. Ng5 {[%clk 0:01:53.2]} 13... Qb6 {[%clk 0:01:50.9]} 14.
Ndxe4 {[%clk 0:01:47.3]} 14... dxe4 {[%clk 0:01:50.8]} 15. Be3 {[%clk
0:01:39.6]} 15... Qa5 {[%clk 0:01:48.1]} 16. Nxe6 {[%clk 0:01:36.6]} 16... Re8
{[%clk 0:01:46.7]} 17. Nxg7 {[%clk 0:01:35.8]} 17... Kxg7 {[%clk 0:01:46.7]} 18.
Bd4 {[%clk 0:01:31.6]} 18... Nd7 {[%clk 0:01:27.1]} 19. Bc3 {[%clk 0:01:17.1]}
19... Qc5 {[%clk 0:00:57.9]} 20. Qxd7 {[%clk 0:01:07.9]} 20... Rad8 {[%clk
0:00:53]} 21. Qxb7 {[%clk 0:00:38.1]} 21... Rf8 {[%clk 0:00:53]} 22. Re2 {[%clk
0:00:24.5]} 22... Rb8 {[%clk 0:00:49.1]} 23. Qc7 {[%clk 0:00:18.7]} 23... Rxf2
{[%clk 0:00:33.6]} 24. Rxf2 {[%clk 0:00:19.6]} 24... Rf8 {[%clk 0:00:34.2]} 25.
Bd4 {[%clk 0:00:20.1]} 1-0